bitfinex/quotes_BTCUSD_20240803
["timestamp","ask_amount","ask_price","bid_price","bid_amount"]
[1722658216546,0.13431919,61864.0,61862.0,0.01]
[1722658216547,0.04841849,61870.0,61869.0,0.52017]
[1722658216739,0.04841849,61876.0,61873.0,0.01]
[1722658217005,0.29174603,61875.0,61874.0,0.60607]
[1722658217152,0.15745924,61875.0,61874.0,0.66217]
[1722658217483,0.15745924,61875.0,61874.0,1.051098]
[1722658218187,0.15745924,61875.0,61874.0,0.75257]
[1722658218387,0.15745924,61875.0,61874.0,0.269714]
[1722658218388,0.29273998,61875.0,61874.0,0.269714]
[1722658218764,0.29173998,61875.0,61874.0,0.267714]
[1722658218979,0.29173998,61875.0,61874.0,0.75457]
[1722658219169,0.29273998,61875.0,61874.0,0.75457]
[1722658219368,0.29374232,61875.0,61874.0,0.75257]
[1722658219569,0.15945924,61875.0,61874.0,0.994998]
[1722658219749,0.002,61875.0,61874.0,0.994998]
[1722658219951,0.001,61875.0,61874.0,0.994998]
[1722658220404,0.002,61875.0,61874.0,0.994998]
[1722658220789,0.002,61875.0,61874.0,0.996998]
[1722658220988,0.005,61880.0,61879.0,0.363612]
[1722658221338,0.29673851,61880.0,61879.0,0.510112]
[1722658222017,0.29673851,61880.0,61879.0,0.75252]
[1722658222615,0.16345924,61880.0,61879.0,0.75452]
[1722658223624,0.16445924,61880.0,61879.0,0.75452]
[1722658224362,0.16345924,61880.0,61879.0,0.75252]
[1722658224764,0.16445924,61880.0,61879.0,0.75452]
[1722658225070,0.16445924,61880.0,61879.0,0.75252]
[1722658225223,0.16445924,61880.0,61879.0,0.75452]
[1722658225563,0.16545924,61880.0,61879.0,0.75452]
[1722658225769,0.16545924,61880.0,61879.0,0.512112]
[1722658226308,0.16545924,61880.0,61879.0,0.75452]
[1722658226749,0.16545924,61880.0,61879.0,0.512112]
[1722658226958,0.16545924,61880.0,61879.0,0.0838]
[1722658227133,0.28845924,61880.0,61879.0,0.0838]
[1722658227333,0.42274123,61880.0,61879.0,0.0838]
[1722658227677,0.42274123,61880.0,61879.0,0.002]
[1722658228157,0.40966124,61880.0,61879.0,0.002]
[1722658228357,0.42274247,61880.0,61879.0,0.002]
[1722658229833,0.4227419,61880.0,61879.0,0.002]
[1722658231231,0.55365806,61880.0,61879.0,0.002]
[1722658231628,0.43245813,61880.0,61879.0,0.002]
[1722658231891,0.42274397,61880.0,61879.0,0.0581]
[1722658232061,0.42274397,61880.0,61879.0,0.421712]
[1722658232256,0.42274397,61880.0,61879.0,0.568212]
[1722658232791,0.16545924,61880.0,61879.0,0.81062]
[1722658234654,0.16545924,61880.0,61879.0,1.053028]
[1722658239421,0.29973527,61880.0,61879.0,1.053028]
[1722658240674,0.29973527,61880.0,61879.0,0.568212]
[1722658241095,0.16545924,61880.0,61879.0,0.568212]
[1722658241782,0.29973784,61880.0,61879.0,0.568212]
[1722658242193,0.29973738,61880.0,61879.0,0.568212]
[1722658243306,0.29973739,61880.0,61879.0,0.568212]
[1722658244044,0.29973739,61880.0,61879.0,0.81062]
[1722658244253,0.14227815,61880.0,61879.0,0.82062]
[1722658244470,0.008,61880.0,61879.0,1.063028]
[1722658245294,0.008,61880.0,61879.0,1.083028]
[1722658245465,0.14226436,61880.0,61879.0,1.083028]
[1722658245901,0.14226436,61880.0,61879.0,1.063028]
[1722658246112,0.2997236,61880.0,61879.0,0.75452]
[1722658246288,0.2997236,61880.0,61879.0,0.81062]
[1722658246694,0.29973142,61880.0,61879.0,0.81062]
[1722658248292,0.30056142,61880.0,61879.0,0.81062]
[1722658249282,0.30056142,61880.0,61879.0,0.75452]
[1722658249881,0.30056142,61880.0,61879.0,0.996928]
[1722658250087,0.30056142,61880.0,61879.0,0.75452]
[1722658250289,0.30055862,61880.0,61879.0,0.996928]
[1722658250513,0.30055862,61880.0,61879.0,1.006928]
[1722658250715,0.30055625,61880.0,61879.0,0.996928]
[1722658252393,0.30055625,61880.0,61879.0,0.75452]
[1722658252770,0.30055625,61880.0,61879.0,0.68982]
[1722658253894,0.16628924,61880.0,61879.0,0.68982]
[1722658254069,0.30055921,61880.0,61879.0,0.68982]
[1722658255782,0.30055921,61880.0,61879.0,0.932228]
[1722658255988,0.14309997,61880.0,61879.0,0.932228]
[1722658256212,0.14309997,61880.0,61879.0,0.993128]
[1722658256412,0.14309997,61880.0,61879.0,1.163228]
[1722658257598,0.14309457,61880.0,61879.0,1.163228]
[1722658258223,0.14309457,61880.0,61879.0,1.143228]
[1722658258452,0.14309457,61880.0,61879.0,1.163228]
[1722658258997,0.14309457,61880.0,61879.0,1.165228]
[1722658258998,0.00883,61880.0,61879.0,1.165228]
[1722658259404,0.00883,61880.0,61879.0,1.407636]
[1722658259891,0.00883,61880.0,61879.0,1.267536]
[1722658260246,0.00683,61880.0,61879.0,1.265536]
[1722658260608,0.00683,61880.0,61879.0,1.267536]
[1722658260816,0.00583,61880.0,61879.0,1.265536]
[1722658261025,0.00683,61880.0,61879.0,1.270536]
[1722658261231,0.00783,61880.0,61879.0,2.548136]
[1722658261433,0.00683,61880.0,61879.0,2.543136]
[1722658261629,0.00583,61880.0,61879.0,2.783544]
[1722658262036,0.00583,61880.0,61879.0,2.788544]
[1722658262037,0.00683,61880.0,61879.0,2.788544]
[1722658262241,0.00083,61884.0,61883.0,1.465156]
[1722658262443,0.00083,61884.0,61883.0,1.82050794]
[1722658262833,0.00083,61894.0,61893.0,1.359088]
[1722658262985,0.00083,61894.0,61893.0,1.499188]
[1722658264528,0.00183,61894.0,61893.0,1.505188]
[1722658264755,0.00183,61894.0,61893.0,1.504188]
[1722658264966,0.00183,61894.0,61893.0,1.511188]
[1722658265150,0.00183,61894.0,61893.0,1.506188]
[1722658265506,0.00283,61894.0,61893.0,1.512188]
[1722658266833,0.00183,61894.0,61893.0,1.505188]
[1722658267010,0.00083,61894.0,61893.0,1.397188]
[1722658267212,0.00183,61894.0,61893.0,2.687788]
[1722658267413,0.00283,61894.0,61893.0,2.687788]
[1722658267612,0.00183,61894.0,61893.0,2.678788]
[1722658267812,0.00183,61894.0,61893.0,2.682788]
[1722658268243,0.00283,61894.0,61893.0,2.690788]
[1722658269696,0.00283,61894.0,61893.0,2.688788]
[1722658270852,0.00283,61894.0,61893.0,2.690788]
[1722658272800,0.00283,61894.0,61893.0,2.70037199]
[1722658273001,0.00283,61894.0,61893.0,2.69837199]
[1722658276645,0.00283,61894.0,61893.0,2.67837199]
[1722658276852,0.00283,61894.0,61893.0,2.688788]
[1722658277515,0.00283,61894.0,61893.0,2.627888]
[1722658278967,0.00283,61894.0,61893.0,2.139835]
[1722658279172,0.22538924,61894.0,61893.0,0.621882]
[1722658279745,0.22538924,61894.0,61893.0,0.864235]
[1722658282039,0.22538924,61894.0,61893.0,0.621882]
[1722658282239,0.30488924,61894.0,61893.0,0.016]
[1722658282442,0.58330872,61894.0,61893.0,0.016]
[1722658282714,0.44906324,61894.0,61893.0,0.016]
[1722658282920,0.8256683,61894.0,61893.0,0.016]
[1722658283637,0.8246683,61894.0,61893.0,0.01]
[1722658283850,0.121177,61893.0,61887.0,0.121188]
[1722658284053,0.1446,61890.0,61887.0,0.121188]
[1722658284244,0.0651,61888.0,61886.0,0.12119]
[1722658284587,0.29172405,61887.0,61886.0,0.12119]
[1722658284805,0.31472405,61887.0,61886.0,0.12119]
[1722658285002,0.31472405,61887.0,61886.0,0.363571]
[1722658285322,0.31472405,61887.0,61886.0,0.12119]
[1722658285735,0.45932405,61887.0,61883.0,0.07875194]
[1722658285938,0.13426481,61886.0,61883.0,0.07875194]
[1722658286138,0.15745924,61885.0,61884.0,0.363582]
[1722658286381,0.29172405,61885.0,61884.0,0.363582]
[1722658287202,0.15745924,61885.0,61884.0,0.363582]
[1722658287581,0.29272384,61885.0,61884.0,0.368582]
[1722658287777,0.15945924,61885.0,61884.0,0.376582]
[1722658287983,0.15845924,61885.0,61884.0,0.363582]
[1722658288207,0.29172373,61885.0,61884.0,0.363582]
[1722658288405,0.29272373,61885.0,61884.0,0.368582]
[1722658288720,0.15845924,61885.0,61884.0,0.368582]
[1722658289131,0.29272415,61885.0,61884.0,0.368582]
[1722658289457,0.15945924,61885.0,61884.0,0.377582]
[1722658289829,0.15845924,61885.0,61884.0,0.372582]
[1722658290075,0.15845924,61885.0,61884.0,0.377582]
[1722658290076,0.2937243,61885.0,61884.0,0.377582]
[1722658290271,0.15845924,61885.0,61884.0,0.368582]
[1722658290705,0.15945924,61885.0,61884.0,0.377582]
[1722658291221,0.15945924,61885.0,61884.0,0.61997]
[1722658293421,0.15945924,61885.0,61884.0,0.862358]
[1722658295203,0.002,61885.0,61884.0,1.114746]
[1722658295467,0.002,61885.0,61884.0,2.88263629]
[1722658295598,0.002,61885.0,61884.0,2.90263629]
[1722658296799,0.002,61885.0,61884.0,3.04193629]
[1722658296935,0.002,61885.0,61884.0,3.04393629]
[1722658297759,0.00083,61894.0,61893.0,0.997535]
[1722658297963,0.00083,61894.0,61893.0,1.137635]
[1722658298818,0.00083,61894.0,61893.0,1.62744477]
[1722658300003,0.00283,61894.0,61893.0,2.91504477]
[1722658300207,0.00283,61894.0,61893.0,2.92504477]
[1722658300382,0.00283,61894.0,61893.0,2.91504477]
[1722658300740,0.00283,61894.0,61893.0,2.92504477]
[1722658301290,0.00283,61894.0,61893.0,2.91504477]
[1722658302980,0.00283,61894.0,61893.0,2.77574477]
[1722658303184,0.22488924,61894.0,61893.0,2.39329177]
[1722658303385,0.22488924,61894.0,61893.0,2.15093877]
[1722658303946,0.22488924,61894.0,61893.0,2.39329177]
[1722658304146,0.22488924,61894.0,61893.0,2.15093877]
[1722658304369,0.22488924,61894.0,61893.0,2.39329177]
[1722658305788,0.22488924,61894.0,61893.0,1.11769177]
[1722658307465,0.16028924,61894.0,61893.0,1.11769177]
[1722658307978,0.16028924,61894.0,61893.0,1.50014477]
[1722658308182,0.16028924,61894.0,61893.0,1.25779177]
[1722658311521,0.16028924,61894.0,61893.0,1.11769177]
[1722658312777,0.00283,61894.0,61893.0,1.11769177]
[1722658312978,0.00283,61894.0,61893.0,1.36004477]
[1722658313148,0.00283,61894.0,61893.0,1.11769177]
[1722658313372,0.00283,61894.0,61893.0,1.36004477]
[1722658315093,0.00283,61894.0,61893.0,1.50014477]
[1722658316127,0.00283,61894.0,61893.0,1.64884477]
[1722658317299,0.06073,61906.0,61905.0,0.363459]
[1722658317452,0.21818924,61906.0,61905.0,0.605765]
[1722658320094,0.22218924,61906.0,61905.0,0.605765]
[1722658320675,0.21818924,61906.0,61905.0,0.605765]
[1722658321204,0.21818924,61906.0,61905.0,0.606765]
[1722658321796,0.21818924,61906.0,61905.0,0.605765]
[1722658322012,0.15745924,61906.0,61905.0,0.848071]
[1722658322969,0.15745924,61906.0,61905.0,0.851071]
[1722658323170,0.15745924,61906.0,61905.0,0.853071]
[1722658323374,0.15745924,61906.0,61905.0,0.851071]
[1722658323900,0.15745924,61906.0,61905.0,0.855071]
[1722658327016,0.30275924,61906.0,61905.0,0.007]
[1722658327192,0.73756614,61906.0,61905.0,0.007]
[1722658327396,0.51944109,61906.0,61905.0,0.007]
[1722658327815,0.39829009,61906.0,61905.0,0.007]
[1722658328751,0.76174309,61906.0,61905.0,0.007]
[1722658329012,1.03151424,61906.0,61905.0,0.007]
[1722658329175,1.27381624,61906.0,61905.0,0.007]
[1722658329374,1.36545541,61906.0,61905.0,0.003]
[1722658329779,1.36645541,61906.0,61905.0,0.003]
[1722658330007,1.36645678,61906.0,61905.0,0.003]
[1722658330207,1.36545678,61906.0,61905.0,0.003]
[1722658330428,1.36545678,61906.0,61905.0,0.004]
[1722658330429,1.51155521,61906.0,61905.0,0.004]
[1722658330631,0.121166,61899.0,61895.0,0.00157439]
[1722658330840,0.1453,61895.0,61894.0,0.6664266]
[1722658331053,0.35112937,61895.0,61894.0,0.6664266]
[1722658331437,0.30275924,61895.0,61894.0,0.6664266]
[1722658331743,0.35112937,61895.0,61894.0,0.6664266]
[1722658332181,0.30275924,61895.0,61894.0,0.6664266]
[1722658332423,0.30275924,61895.0,61894.0,0.9107756]
[1722658332424,0.22035924,61895.0,61894.0,0.9107756]
[1722658332651,0.22035924,61895.0,61894.0,0.44427494]
[1722658333104,0.22035924,61895.0,61894.0,0.44827494]
[1722658333550,0.22035924,61895.0,61894.0,0.20592594]
[1722658333765,0.22035924,61895.0,61894.0,0.44827494]
[1722658334240,0.22035924,61895.0,61894.0,0.44627494]
[1722658334472,0.22035924,61895.0,61894.0,0.44227494]
[1722658334708,0.22035924,61895.0,61894.0,0.44527494]
[1722658335136,0.22035924,61895.0,61894.0,0.44227494]
[1722658336323,0.2687455,61895.0,61894.0,0.44327494]
[1722658336572,0.22035924,61895.0,61894.0,0.68562394]
[1722658336816,0.22035924,61895.0,61894.0,0.68462394]
[1722658337043,0.22035924,61895.0,61894.0,0.68562394]
[1722658337521,0.15745924,61895.0,61894.0,0.68562394]
[1722658339524,0.29170391,61895.0,61894.0,0.44327494]
[1722658340488,0.34011938,61895.0,61894.0,0.44327494]
[1722658341387,0.34012049,61895.0,61894.0,0.44327494]
[1722658341616,0.34012049,61895.0,61894.0,0.07975194]
[1722658341813,0.15745924,61895.0,61894.0,0.20092594]
[1722658342013,0.29170557,61895.0,61894.0,0.20092594]
[1722658343032,0.29170557,61895.0,61894.0,0.07975194]
[1722658344847,0.29170557,61895.0,61894.0,0.08066494]
[1722658345223,0.15745924,61895.0,61894.0,0.20183894]
[1722658345459,0.29170582,61895.0,61894.0,0.20183894]
[1722658345653,0.29170582,61895.0,61894.0,0.44418794]
[1722658345910,0.34012066,61895.0,61894.0,0.20183894]
[1722658346091,0.29170582,61895.0,61894.0,0.20183894]
[1722658347087,0.34012031,61895.0,61894.0,0.68653694]
[1722658347303,0.29170582,61895.0,61894.0,0.68653694]
[1722658350749,0.29170582,61895.0,61894.0,0.44418794]
[1722658351077,0.43240582,61895.0,61894.0,0.20183894]
[1722658351254,0.45540582,61895.0,61894.0,0.20083894]
[1722658351455,0.50381962,61895.0,61894.0,0.20083894]
[1722658351615,0.50381962,61895.0,61894.0,0.20583894]
[1722658351825,0.50381962,61895.0,61894.0,0.08166494]
[1722658352248,0.50381962,61895.0,61894.0,0.08666494]
[1722658352453,0.50381962,61895.0,61894.0,0.09266494]
[1722658353094,0.81892282,61895.0,61894.0,0.013913]
[1722658353429,1.11793329,61895.0,61894.0,0.013913]
[1722658353630,0.92702124,61895.0,61894.0,0.013913]
[1722658353832,1.07114218,61895.0,61894.0,0.013913]
[1722658354053,1.07114218,61895.0,61894.0,0.006913]
[1722658354406,1.31334635,61895.0,61894.0,0.013913]
[1722658354608,1.31334635,61895.0,61894.0,0.000913]
[1722658355000,1.4529482,61895.0,61894.0,0.000913]
[1722658355201,1.25669135,61895.0,61894.0,0.000913]
[1722658355445,1.45796354,61895.0,61894.0,0.000913]
[1722658357547,1.70030854,61895.0,61894.0,0.000913]
[1722658357940,1.84554994,61895.0,61894.0,0.000913]
[1722658358379,1.84054994,61895.0,61894.0,0.000913]
[1722658358531,1.84554994,61895.0,61894.0,0.000913]
[1722658358904,1.84754994,61895.0,61894.0,0.000913]
[1722658359244,1.70230854,61895.0,61894.0,0.000913]
[1722658360256,1.48249672,61895.0,61894.0,0.000913]
[1722658360459,1.70238655,61895.0,61894.0,0.000913]
[1722658364064,1.3716814,61895.0,61894.0,0.000913]
[1722658364273,1.70261422,61895.0,61894.0,0.000913]
[1722658364443,1.42049554,61895.0,61894.0,0.000913]
[1722658364626,1.70245826,61895.0,61894.0,0.000913]
[1722658365203,1.46011326,61895.0,61894.0,0.000913]
[1722658365429,1.38081326,61895.0,61894.0,0.000913]
[1722658367144,1.45851326,61895.0,61894.0,0.000913]
[1722658367562,1.45823127,61895.0,61894.0,0.000913]
[1722658371370,1.60333669,61895.0,61894.0,0.000913]
[1722658371955,1.60253557,61895.0,61894.0,0.000913]
[1722658372498,1.45743015,61895.0,61894.0,0.000913]
[1722658373336,1.6027474,61895.0,61894.0,0.000913]
[1722658374819,1.60256225,61895.0,61894.0,0.000913]
[1722658375249,1.25124516,61895.0,61894.0,0.000913]
[1722658375481,1.52505486,61895.0,61894.0,0.000913]
[1722658377111,0.69410124,61895.0,61894.0,0.000913]
[1722658377702,0.93644624,61895.0,61894.0,0.000913]
[1722658378306,0.66064011,61895.0,61894.0,0.000913]
[1722658378421,0.93722007,61895.0,61894.0,0.000913]
[1722658379256,0.55255656,61895.0,61894.0,0.000913]
[1722658379467,0.69499108,61895.0,61894.0,0.000913]
[1722658379680,0.93733608,61895.0,61894.0,0.000913]
[1722658380177,0.93733608,61895.0,61894.0,0.261787]
[1722658380178,0.57381908,61895.0,61894.0,0.261787]
[1722658380380,0.39852627,61895.0,61894.0,0.504136]
[1722658380614,0.39852627,61895.0,61894.0,0.746485]
[1722658380847,0.44696484,61895.0,61894.0,0.746485]
[1722658381050,0.39850388,61895.0,61894.0,0.746485]
[1722658381281,0.29850388,61895.0,61894.0,0.746485]
[1722658381824,0.29850388,61895.0,61894.0,0.504136]
[1722658382051,0.34694245,61895.0,61894.0,0.504136]
[1722658382260,0.29850388,61895.0,61894.0,0.504136]
[1722658382461,0.29150388,61895.0,61894.0,0.504136]
[1722658382687,0.33993979,61895.0,61894.0,0.506136]
[1722658382861,0.29150388,61895.0,61894.0,0.506136]
[1722658383088,0.33993987,61895.0,61894.0,0.504136]
[1722658383509,0.33993987,61895.0,61894.0,0.511136]
[1722658383687,0.33993987,61895.0,61894.0,0.510136]
[1722658384060,0.29150388,61895.0,61894.0,0.512136]
[1722658384269,0.2057001,61895.0,61894.0,0.519136]
[1722658384473,0.34094391,61895.0,61894.0,0.519136]
[1722658384919,0.34094179,61895.0,61894.0,0.519136]
[1722658385497,0.34094179,61895.0,61894.0,0.511136]
[1722658385705,0.33994179,61895.0,61894.0,0.504136]
[1722658385905,0.33994179,61895.0,61894.0,0.521136]
[1722658386106,0.34094179,61895.0,61894.0,0.521136]
[1722658387149,0.34094179,61895.0,61894.0,0.577136]
[1722658387350,0.29250719,61895.0,61894.0,0.152513]
[1722658387695,0.29250719,61895.0,61894.0,0.139087]
[1722658387901,0.29251008,61895.0,61894.0,0.139087]
[1722658388100,0.36516198,61895.0,61894.0,0.139087]
[1722658388535,0.29251008,61895.0,61894.0,0.139087]
[1722658388738,0.41368208,61895.0,61894.0,0.017913]
[1722658388910,0.41359659,61895.0,61894.0,0.017913]
[1722658389568,0.41359659,61895.0,61894.0,0.000913]
[1722658389569,0.41259659,61895.0,61894.0,0.000913]
[1722658389769,0.41359659,61895.0,61894.0,0.000913]
[1722658390356,0.41259659,61895.0,61894.0,0.000913]
[1722658390636,0.41359659,61895.0,61894.0,0.000913]
[1722658391032,0.29251008,61895.0,61894.0,0.000913]
[1722658391241,0.41359659,61895.0,61894.0,0.000913]
[1722658391413,0.41360393,61895.0,61894.0,0.000913]
[1722658391816,0.29251742,61895.0,61894.0,0.000913]
[1722658392020,0.41360393,61895.0,61894.0,0.000913]
[1722658392202,0.77712093,61895.0,61894.0,0.000913]
[1722658392409,0.92137942,61895.0,61894.0,0.000913]
[1722658392629,1.16037942,61895.0,61894.0,0.000913]
[1722658392828,1.30273929,61895.0,61894.0,0.000913]
[1722658393031,0.8858531,61895.0,61894.0,0.000913]
[1722658393232,0.41551742,61895.0,61894.0,0.079513]
[1722658393492,0.53568942,61895.0,61894.0,0.079513]
[1722658393772,0.53568942,61895.0,61894.0,0.000913]
[1722658393773,0.91903442,61895.0,61894.0,0.000913]
[1722658393927,1.05901015,61895.0,61894.0,0.000913]
[1722658394128,0.91743442,61895.0,61894.0,0.000913]
[1722658394536,1.99456848,61895.0,61894.0,0.000913]
[1722658394761,1.56921682,61895.0,61894.0,0.000913]
[1722658394963,1.99289776,61895.0,61894.0,0.000913]
[1722658395163,1.98189776,61895.0,61894.0,0.000913]
[1722658395365,1.99156477,61895.0,61894.0,0.000913]
[1722658395536,1.99456477,61895.0,61894.0,0.000913]
[1722658395739,1.99156477,61895.0,61894.0,0.000913]
[1722658395944,2.00856477,61895.0,61894.0,0.000913]
[1722658396143,2.01056477,61895.0,61894.0,0.000913]
[1722658396627,2.02056477,61895.0,61894.0,0.001913]
[1722658396790,2.02256477,61895.0,61894.0,0.002913]
[1722658397016,0.848333,61886.0,61885.0,0.000913]
[1722658397214,1.73814019,61886.0,61885.0,0.000913]
[1722658398000,1.54286375,61886.0,61885.0,0.000913]
[1722658398410,1.45974209,61886.0,61885.0,0.000913]
[1722658398664,1.53937877,61886.0,61885.0,0.000913]
[1722658399195,1.67823659,61886.0,61885.0,0.000913]
[1722658399404,1.73423659,61886.0,61885.0,0.000913]
[1722658399618,1.74323659,61886.0,61885.0,0.001913]
[1722658399817,1.74523659,61886.0,61885.0,0.002913]
[1722658400420,1.60638045,61886.0,61885.0,0.002913]
[1722658401244,1.60638442,61886.0,61885.0,0.002913]
[1722658401665,1.47008645,61886.0,61885.0,0.002913]
[1722658402975,1.47964054,61886.0,61885.0,0.002913]
[1722658403184,1.53631035,61886.0,61885.0,0.002913]
[1722658403411,1.61531959,61886.0,61885.0,0.002913]
[1722658403542,1.47964159,61886.0,61885.0,0.002913]
[1722658403946,1.53631035,61886.0,61885.0,0.002913]
[1722658404393,1.47964159,61886.0,61885.0,0.002913]
[1722658404576,1.61257918,61886.0,61885.0,0.002913]
[1722658405606,1.34534633,61886.0,61885.0,0.002913]
[1722658405784,1.61280016,61886.0,61885.0,0.002913]
[1722658405989,1.75089937,61886.0,61885.0,0.002913]
[1722658406473,1.76089937,61886.0,61885.0,0.002913]
[1722658406671,1.75089937,61886.0,61885.0,0.002913]
[1722658406877,1.76089937,61886.0,61885.0,0.002913]
[1722658407125,2.00328037,61886.0,61885.0,0.002913]
[1722658407336,0.363606,61880.0,61876.0,0.07875194]
[1722658407530,0.95166073,61880.0,61876.0,0.07875194]
[1722658407729,1.45946873,61880.0,61876.0,0.07875194]
[1722658409254,1.45948321,61880.0,61876.0,0.07875194]
[1722658409845,1.45948321,61880.0,61879.0,0.002913]
[1722658409846,1.47448321,61880.0,61879.0,0.002913]
[1722658412263,1.03577921,61880.0,61879.0,0.066113]
[1722658412472,1.03577921,61880.0,61879.0,0.002913]
[1722658412699,1.27818321,61880.0,61879.0,0.002913]
[1722658413349,1.37484782,61880.0,61879.0,0.002913]
[1722658413555,1.39488321,61880.0,61879.0,0.002913]
[1722658414094,1.03577921,61880.0,61879.0,0.068913]
[1722658414277,1.13242972,61880.0,61879.0,0.149113]
[1722658414682,1.13242972,61880.0,61879.0,0.083113]
[1722658415165,1.13242778,61880.0,61879.0,0.083113]
[1722658415312,1.1324207,61880.0,61879.0,0.083113]
[1722658415499,1.1324207,61880.0,61879.0,0.002913]
[1722658416276,1.132413,61880.0,61879.0,0.002913]
[1722658416760,1.13241373,61880.0,61879.0,0.002913]
[1722658416952,0.86583578,61880.0,61879.0,0.002913]
[1722658417107,0.86583578,61880.0,61879.0,0.068913]
[1722658417520,0.42976224,61880.0,61879.0,0.068913]
[1722658417720,0.45506913,61880.0,61879.0,0.149113]
[1722658417887,0.40676224,61880.0,61879.0,0.149113]
[1722658418309,0.45506913,61880.0,61879.0,0.149113]
[1722658418508,0.45506913,61880.0,61879.0,0.148113]
[1722658418509,0.39876224,61880.0,61879.0,0.148113]
[1722658418903,0.40676224,61880.0,61879.0,0.149113]
[1722658419104,0.39976224,61880.0,61879.0,0.148113]
[1722658419543,0.39276224,61880.0,61879.0,0.147113]
[1722658419749,0.3947555,61880.0,61879.0,0.147113]
[1722658421393,0.5159575,61880.0,61879.0,0.147113]
[1722658421572,0.7793615,61880.0,61879.0,0.147113]
[1722658421771,0.7813615,61880.0,61879.0,0.147113]
[1722658422174,0.7793615,61880.0,61879.0,0.147113]
[1722658422430,1.0980097,61880.0,61879.0,0.147113]
[1722658422597,1.3424137,61880.0,61879.0,0.081113]
[1722658422909,1.3414137,61880.0,61879.0,0.000913]
[1722658423048,1.3404137,61880.0,61879.0,0.000913]
[1722658423247,1.34029865,61880.0,61879.0,0.001913]
[1722658423444,1.29199176,61880.0,61879.0,0.001913]
[1722658424437,1.3644593,61880.0,61879.0,0.001913]
[1722658424914,1.61769576,61880.0,61879.0,0.001913]
[1722658425114,1.71433725,61880.0,61879.0,0.001913]
[1722658425313,1.61769576,61880.0,61879.0,0.001913]
[1722658426237,1.62569576,61880.0,61879.0,0.001913]
[1722658426640,1.17141324,61880.0,61879.0,0.001913]
[1722658426875,1.38127724,61880.0,61879.0,0.000913]
[1722658427044,1.63168124,61880.0,61879.0,0.002913]
[1722658427230,1.63873544,61880.0,61879.0,0.002913]
[1722658429335,1.51713331,61880.0,61879.0,0.002913]
[1722658429537,1.39633144,61880.0,61879.0,0.002913]
[1722658429738,1.31303144,61880.0,61879.0,0.002913]
[1722658430172,1.67623731,61880.0,61879.0,0.002913]
[1722658430823,1.55543544,61880.0,61879.0,0.002913]
[1722658431180,1.43384607,61880.0,61879.0,0.002913]
[1722658431388,1.39633144,61880.0,61879.0,0.002913]
[1722658432168,0.99176924,61880.0,61879.0,0.002913]
[1722658432394,1.29487324,61880.0,61879.0,0.002913]
[1722658433635,1.42918211,61880.0,61879.0,0.002913]
[1722658433955,1.62370871,61880.0,61879.0,0.002913]
[1722658434254,1.43997628,61880.0,61879.0,0.002913]
[1722658435293,1.29487324,61880.0,61879.0,0.002913]
[1722658436732,1.62338718,61880.0,61879.0,0.002913]
[1722658438315,1.62360611,61880.0,61879.0,0.002913]
[1722658438898,1.78684703,61880.0,61879.0,0.002913]
[1722658439356,1.62360611,61880.0,61879.0,0.002913]
[1722658441604,1.54030611,61880.0,61879.0,0.002913]
[1722658441763,1.26757324,61880.0,61879.0,0.002913]
[1722658441972,1.59650436,61880.0,61879.0,0.002913]
[1722658442374,0.50839036,61880.0,61879.0,0.755733]
[1722658442557,0.31376553,61880.0,61879.0,0.513325]
[1722658442774,0.41076944,61880.0,61879.0,0.149713]
[1722658442977,0.55622476,61880.0,61879.0,0.149713]
[1722658443313,0.43496753,61880.0,61879.0,0.149713]
[1722658443524,0.42096753,61880.0,61879.0,0.148713]
[1722658443750,0.42296753,61880.0,61879.0,0.148713]
[1722658443909,0.41496753,61880.0,61879.0,0.147713]
[1722658444110,0.41296753,61880.0,61879.0,0.147713]
[1722658444334,0.90077553,61880.0,61879.0,0.148713]
[1722658444505,1.19523902,61880.0,61879.0,0.082113]
[1722658444911,1.19223902,61880.0,61879.0,0.085113]
[1722658445113,1.19223902,61880.0,61879.0,0.084113]
[1722658445316,1.21523902,61880.0,61879.0,0.084113]
[1722658445747,1.21523902,61880.0,61879.0,0.082113]
[1722658445996,0.97583502,61880.0,61879.0,0.082113]
[1722658446524,0.97783502,61880.0,61879.0,0.082113]
[1722658446726,0.97630155,61880.0,61879.0,0.082113]
[1722658447223,0.97830155,61880.0,61879.0,0.082113]
[1722658447870,0.97530155,61880.0,61879.0,0.082113]
[1722658448246,1.22170555,61880.0,61879.0,0.000913]
[1722658448451,0.97930155,61880.0,61879.0,0.000913]
[1722658448646,1.21770555,61880.0,61879.0,0.000913]
[1722658449201,0.97830155,61880.0,61879.0,0.000913]
[1722658449548,0.73589755,61880.0,61879.0,0.000913]
[1722658449753,0.59762476,61880.0,61879.0,0.000913]
[1722658449955,0.74313998,61880.0,61879.0,0.082113]
[1722658450410,1.12034981,61880.0,61879.0,0.082113]
[1722658450614,1.02576528,61880.0,61879.0,0.082113]
[1722658450846,1.21676571,61880.0,61879.0,0.082113]
[1722658451170,1.21176571,61880.0,61879.0,0.082113]
[1722658451349,0.97436171,61880.0,61879.0,0.082113]
[1722658451583,1.0510576,61880.0,61879.0,0.082113]
[1722658451972,1.0490576,61880.0,61879.0,0.082113]
[1722658452192,1.0510576,61880.0,61879.0,0.082113]
[1722658453400,1.0510576,61880.0,61879.0,0.000913]
[1722658454232,0.72390556,61880.0,61879.0,0.000913]
[1722658454414,0.80669533,61880.0,61879.0,0.064913]
[1722658454610,0.68549333,61880.0,61879.0,0.140913]
[1722658455243,0.47159436,61880.0,61879.0,0.318117]
[1722658455440,0.47159436,61880.0,61879.0,0.560525]
[1722658455441,0.39475404,61880.0,61879.0,0.560525]
[1722658455596,0.39275404,61880.0,61879.0,0.318117]
[1722658455796,0.39475404,61880.0,61879.0,0.560525]
[1722658456369,0.29475404,61880.0,61879.0,0.560525]
[1722658456793,0.29375404,61880.0,61879.0,0.560525]
[1722658456944,0.29375404,61880.0,61879.0,0.802933]
[1722658457785,0.41497708,61880.0,61879.0,0.561525]
[1722658458080,0.293741,61880.0,61879.0,0.263117]
[1722658458459,0.291741,61880.0,61879.0,0.263117]
[1722658458658,0.292741,61880.0,61879.0,0.140913]
[1722658458885,0.15845924,61880.0,61879.0,0.504525]